bitfinex/quotes_BTCUSD_20250408
["timestamp","ask_amount","ask_price","bid_price","bid_amount"]
[1744111566007,0.34,79332.0,79329.0,0.012605]
[1744111566518,0.34,79332.0,79330.0,0.001]
[1744111566723,0.34,79332.0,79330.0,0.002]
[1744111567263,0.34,79332.0,79329.0,0.014605]
[1744111567562,0.352605,79332.0,79329.0,0.005]
[1744111567963,0.264716,79331.0,79329.0,0.005]
[1744111568560,0.012605,79330.0,79329.0,0.003]
[1744111569505,0.012605,79330.0,79329.0,0.005]
[1744111569665,0.012605,79330.0,79329.0,0.002]
[1744111569844,0.264719,79329.0,79328.0,0.14672]
[1744111571844,0.264719,79329.0,79328.0,0.14772]
[1744111575698,0.604719,79329.0,79328.0,0.14772]
[1744111575936,0.82307764,79329.0,79328.0,0.001]
[1744111576052,0.252189,79306.0,79304.0,0.0454358]
[1744111576249,0.604798,79306.0,79305.0,0.14668]
[1744111576872,0.604798,79306.0,79293.0,0.0003358]
[1744111576873,0.604823,79298.0,79293.0,0.0003358]
[1744111577077,0.651223,79298.0,79297.0,0.04756417]
[1744111577708,0.651223,79298.0,79293.0,0.0003358]
[1744111577709,0.264836,79294.0,79293.0,0.0003358]
[1744111578591,0.77679464,79294.0,79293.0,8e-07]
[1744111578803,1.18859464,79294.0,79293.0,8e-07]
[1744111579208,1.21214897,79294.0,79293.0,8e-07]
[1744111579786,1.21314897,79294.0,79293.0,8e-07]
[1744111580552,1.21214897,79294.0,79293.0,8e-07]
[1744111580906,1.21314897,79294.0,79293.0,8e-07]
[1744111581679,0.34,79286.0,79284.0,4e-07]
[1744111581815,0.89067064,79285.0,79284.0,4e-07]
[1744111582231,1.14292464,79285.0,79284.0,4e-07]
[1744111582632,1.1555911,79285.0,79284.0,4e-07]
[1744111583063,1.17905513,79285.0,79284.0,4e-07]
[1744111591118,1.1555911,79285.0,79284.0,4e-07]
[1744111591322,0.68933246,79285.0,79284.0,4e-07]
[1744111591523,0.42446646,79285.0,79284.0,0.0126124]
[1744111591774,0.42446646,79285.0,79284.0,0.2053124]
[1744111592017,0.01261,79296.0,79289.0,0.012612]
[1744111592248,0.252216,79297.0,79291.0,0.012611]
[1744111592485,0.0127845,79292.0,79291.0,0.012611]
[1744111592721,0.252216,79297.0,79291.0,0.012611]
[1744111592722,0.0099903,79299.0,79296.0,0.01261]
[1744111592933,0.01261,79298.0,79297.0,0.0947]
[1744111593104,0.01261,79298.0,79297.0,0.2415]
[1744111593434,0.34,79300.0,79297.0,0.2415]
[1744111593586,0.35261,79298.0,79297.0,0.2415]
[1744111594584,0.352838,79300.0,79299.0,0.01261]
[1744111594786,0.352838,79300.0,79297.0,0.493714]
[1744111594997,0.352838,79300.0,79297.0,0.2415]
[1744111595194,0.025448,79300.0,79297.0,0.2425]
[1744111595417,0.012838,79300.0,79297.0,0.2425]
[1744111595616,0.604815,79301.0,79297.0,0.2415]
[1744111595815,0.35261,79298.0,79297.0,0.1468]
[1744111595979,0.35261,79298.0,79297.0,0.1478]
[1744111596563,0.35261,79298.0,79297.0,0.1468]
[1744111596971,0.35261,79298.0,79297.0,0.1478]
[1744111598124,0.35261,79298.0,79297.0,0.1468]
[1744111598529,0.35261,79298.0,79297.0,0.1478]
[1744111601032,0.0099321,79305.0,79304.0,0.012609]
[1744111601236,0.0099321,79305.0,79304.0,0.312203]
[1744111601452,0.0099321,79305.0,79304.0,0.0474]
[1744111601453,0.34,79305.0,79304.0,0.0474]
[1744111601603,0.352609,79305.0,79304.0,0.0474]
[1744111602134,0.354609,79305.0,79304.0,0.0474]
[1744111602379,0.356609,79305.0,79304.0,0.0474]
[1744111603657,0.01670501,79305.0,79304.0,0.060009]
[1744111604203,0.35670501,79305.0,79304.0,0.0474]
[1744111605219,0.004,79305.0,79304.0,0.23536764]
[1744111605557,0.004,79305.0,79304.0,0.2378891]
[1744111606145,0.002,79305.0,79304.0,0.25242995]
[1744111606347,0.002,79305.0,79304.0,0.24990849]
[1744111606543,0.002,79305.0,79304.0,0.25190849]
[1744111607626,0.00041963,79306.0,79305.0,0.52663985]
[1744111607803,0.00041963,79306.0,79305.0,0.65289849]
[1744111609066,0.00041963,79306.0,79305.0,0.65889849]
[1744111609264,0.00041963,79306.0,79305.0,0.66389849]
[1744111610679,0.00041963,79306.0,79305.0,0.79607764]
[1744111610941,0.00041963,79306.0,79305.0,0.38127864]
[1744111611357,0.25260663,79306.0,79305.0,0.15772]
[1744111611561,0.60521563,79306.0,79305.0,0.011]
[1744111612435,0.60521563,79306.0,79302.0,0.14672]
[1744111612436,0.604806,79303.0,79302.0,0.14672]
[1744111614935,0.606806,79303.0,79302.0,0.14672]
[1744111615148,0.606806,79303.0,79302.0,0.14972]
[1744111615746,0.606806,79303.0,79302.0,0.14672]
[1744111616158,0.608806,79303.0,79302.0,0.14672]
[1744111617296,0.34,79297.0,79292.0,0.264842]
[1744111617602,0.012611,79292.0,79291.0,0.14672]
[1744111618457,0.01242823,79292.0,79291.0,0.14672]
[1744111618661,0.264842,79293.0,79291.0,0.14672]
[1744111618867,0.252187,79307.0,79299.0,0.252209]
[1744111619073,0.01302863,79306.0,79298.0,0.01261]
[1744111619290,0.34,79303.0,79298.0,0.13886864]
[1744111619450,0.61737854,79303.0,79298.0,0.12625864]
[1744111619653,0.264815,79301.0,79298.0,0.12625864]
[1744111619964,0.01261,79299.0,79298.0,0.12625864]
[1744111620176,0.264815,79301.0,79298.0,0.12625864]
[1744111621722,0.265815,79301.0,79298.0,0.12625864]
[1744111621878,0.264819,79299.0,79298.0,0.12625864]
[1744111622079,0.252218,79297.0,79290.0,0.264849]
[1744111622303,0.252218,79297.0,79292.0,0.12625864]
[1744111622817,0.264832,79296.0,79292.0,0.12625864]
[1744111623035,0.01261,79296.0,79292.0,0.12625864]
[1744111623367,0.264824,79298.0,79293.0,0.252229]
[1744111623562,0.264824,79298.0,79294.0,0.12625864]
[1744111624239,0.01361,79299.0,79294.0,0.39109264]
[1744111624390,0.265822,79299.0,79294.0,0.12625864]
[1744111624590,0.264822,79299.0,79294.0,0.12625864]
[1744111624789,0.264822,79299.0,79294.0,0.12725864]
[1744111624993,0.264822,79299.0,79294.0,0.12625864]
[1744111625338,0.264822,79299.0,79294.0,0.12725864]
[1744111625726,0.264825,79298.0,79294.0,0.12725864]
[1744111626484,0.264825,79298.0,79294.0,0.12925864]
[1744111626920,0.012611,79295.0,79294.0,0.12925864]
[1744111627116,0.012611,79295.0,79294.0,0.12725864]
[1744111627285,0.264829,79298.0,79294.0,0.12625864]
[1744111627514,0.264829,79298.0,79294.0,0.12725864]
[1744111627816,0.264829,79298.0,79295.0,0.14676]
[1744111628060,0.01261,79298.0,79295.0,0.14676]
[1744111628214,0.264825,79298.0,79295.0,0.14676]
[1744111628416,0.01261,79296.0,79295.0,0.14676]
[1744111628785,0.264828,79297.0,79295.0,0.14676]
[1744111629332,0.01261,79296.0,79295.0,0.001]
[1744111629489,0.35261,79296.0,79295.0,0.001]
[1744111629688,0.35261,79296.0,79291.0,0.14676]
[1744111629689,0.264843,79292.0,79291.0,0.14676]
[1744111629955,0.604843,79292.0,79291.0,0.14676]
[1744111630540,0.34,79292.0,79291.0,0.14676]
[1744111630720,0.352611,79292.0,79291.0,0.14676]
[1744111630916,0.352611,79292.0,79287.0,0.252247]
[1744111631139,0.352611,79292.0,79288.0,0.399003]
[1744111631369,0.352611,79292.0,79288.0,0.399004]
[1744111631572,0.352611,79292.0,79291.0,0.002]
[1744111631713,0.34,79292.0,79291.0,0.005]
[1744111631913,0.34,79292.0,79291.0,0.003]
[1744111631914,0.352611,79292.0,79291.0,0.003]
[1744111632122,0.34,79292.0,79291.0,0.012611]
[1744111632428,0.34,79292.0,79291.0,0.0476]
[1744111633535,0.0099017,79296.0,79293.0,0.012611]
[1744111633775,0.0099017,79296.0,79294.0,0.0475]
[1744111634017,0.34,79301.0,79296.0,0.264829]
[1744111634219,0.34,79299.0,79295.0,0.012611]
[1744111634431,0.252215,79298.0,79294.0,0.17375864]
[1744111634648,0.264825,79298.0,79294.0,0.17375864]
[1744111635983,0.252218,79297.0,79294.0,0.17475864]
[1744111636118,0.264825,79298.0,79294.0,0.17475864]
[1744111636504,0.264825,79298.0,79295.0,0.14676]
[1744111636903,0.01261,79296.0,79295.0,0.14676]
[1744111637930,0.35261,79296.0,79295.0,0.14676]
[1744111638133,0.35261,79296.0,79295.0,0.14776]
[1744111638768,0.35261,79296.0,79295.0,0.14676]
[1744111639192,0.35261,79296.0,79295.0,0.001]
[1744111640218,0.34,79297.0,79295.0,0.001]
[1744111640574,0.002,79296.0,79295.0,0.001]
[1744111641184,0.002,79296.0,79295.0,0.265833]
[1744111641381,0.3499075,79302.0,79298.0,0.252212]
[1744111641587,0.35261,79300.0,79299.0,0.14676]
[1744111641987,0.34,79300.0,79299.0,0.14676]
[1744111642404,0.35261,79300.0,79299.0,0.14676]
[1744111642633,0.01261,79299.0,79295.0,0.0476]
[1744111642930,0.01261,79299.0,79296.0,0.14676]
[1744111643135,0.01261,79298.0,79296.0,0.14676]
[1744111644429,0.264823,79298.0,79296.0,0.14676]
[1744111644860,0.266823,79298.0,79296.0,0.14676]
[1744111645211,0.254213,79298.0,79296.0,0.14676]
[1744111645573,0.002,79298.0,79296.0,0.14676]
[1744111645731,0.004,79298.0,79296.0,0.14676]
[1744111646454,0.004,79298.0,79286.0,1.04672]
[1744111646455,0.252243,79289.0,79286.0,1.04672]
[1744111646655,0.012611,79292.0,79287.0,0.52526364]
[1744111646855,0.264845,79292.0,79287.0,0.27301864]
[1744111647056,0.264845,79292.0,79287.0,0.52526264]
[1744111647268,0.2747831,79295.0,79290.0,0.252238]
[1744111647431,0.0225581,79295.0,79291.0,0.252233]
[1744111647637,0.252228,79294.0,79289.0,0.252241]
[1744111648337,0.252231,79293.0,79288.0,0.012612]
[1744111648777,0.252231,79293.0,79289.0,0.001]
[1744111649188,0.264839,79294.0,79289.0,0.25324]
[1744111649389,0.0099471,79295.0,79290.0,0.252236]
[1744111649728,0.0099471,79295.0,79290.0,0.012611]
[1744111649729,0.2747831,79295.0,79290.0,0.012611]
[1744111650063,0.264839,79294.0,79289.0,0.013612]
[1744111650315,0.012611,79294.0,79289.0,0.264852]
[1744111650530,0.0225581,79295.0,79291.0,0.252233]
[1744111650732,0.0099471,79295.0,79294.0,0.264836]
[1744111650931,0.0099471,79295.0,79294.0,0.311736]
[1744111651091,0.34,79302.0,79297.0,0.252215]
[1744111651285,0.35261,79302.0,79297.0,0.252215]
[1744111651489,0.01261,79301.0,79297.0,0.252215]
[1744111651703,0.252208,79300.0,79296.0,0.01261]
[1744111651893,0.264818,79300.0,79294.0,0.311736]
[1744111652114,0.001,79295.0,79294.0,0.311736]
[1744111652633,0.264822,79299.0,79294.0,0.311736]
[1744111653866,0.264826,79298.0,79295.0,0.14676]
[1744111655267,0.01261,79296.0,79295.0,0.14676]
[1744111655835,0.01261,79296.0,79286.0,1.059332]
[1744111655836,0.26486,79287.0,79286.0,0.99912]
[1744111656069,0.26486,79287.0,79286.0,1.14588]
[1744111658036,0.26486,79287.0,79286.0,1.14788]
[1744111658240,0.264853,79289.0,79286.0,1.14788]
[1744111658441,0.264853,79289.0,79286.0,1.15088]
[1744111658646,0.012611,79290.0,79286.0,1.15088]
[1744111659052,0.34,79293.0,79290.0,0.012611]
[1744111659397,0.34,79293.0,79292.0,0.264843]
[1744111659596,0.34,79293.0,79291.0,0.012611]
[1744111659749,0.34,79293.0,79291.0,0.252235]
[1744111659958,0.34,79293.0,79291.0,0.264846]
[1744111660155,0.264825,79298.0,79293.0,0.252228]
[1744111660362,0.3499535,79299.0,79292.0,0.012611]
[1744111660363,0.3499535,79299.0,79296.0,0.252216]
[1744111660766,0.34,79299.0,79296.0,0.12625864]
[1744111660993,0.35261,79299.0,79296.0,0.12625864]
[1744111661549,0.35261,79299.0,79294.0,0.0452]
[1744111661550,0.3498655,79304.0,79302.0,0.26481]
[1744111661812,0.3498655,79304.0,79302.0,0.41157]
[1744111661974,0.3498655,79304.0,79302.0,0.14676]
[1744111661975,0.34,79304.0,79302.0,0.14676]
[1744111662177,0.4118,79305.0,79304.0,0.012609]
[1744111662376,0.00041963,79306.0,79305.0,0.25219]
[1744111662556,0.25260763,79306.0,79302.0,0.27301864]
[1744111662775,0.002,79303.0,79302.0,0.27301864]
[1744111662976,0.002,79303.0,79302.0,0.28562864]
[1744111663173,0.002,79303.0,79302.0,0.27301864]
[1744111663999,0.002,79303.0,79302.0,0.28249376]
[1744111664000,0.01447853,79303.0,79302.0,0.28249376]
[1744111664202,0.01247853,79303.0,79302.0,0.28249376]
[1744111664424,0.01247853,79303.0,79302.0,0.14676]
[1744111664425,0.012609,79303.0,79302.0,0.14676]
[1744111664857,0.012611,79294.0,79288.0,0.4144]
[1744111665061,0.012611,79294.0,79286.0,0.99912]
[1744111665062,0.012612,79287.0,79286.0,0.99912]
[1744111665375,0.012612,79287.0,79286.0,1.14584]
[1744111665940,0.252247,79288.0,79286.0,1.14584]
[1744111666120,0.012612,79287.0,79286.0,1.14584]
[1744111666969,0.012612,79287.0,79286.0,1.14784]
[1744111667551,0.012612,79287.0,79286.0,1.14984]
[1744111667957,0.352611,79293.0,79288.0,0.264855]
[1744111668139,0.012611,79292.0,79286.0,1.28871064]
[1744111668696,0.604842,79293.0,79287.0,0.264857]
[1744111668836,0.0099751,79294.0,79291.0,0.012611]
[1744111669042,0.0099751,79294.0,79292.0,0.25223]
[1744111669241,0.01261,79297.0,79291.0,0.012611]
[1744111669242,0.252224,79295.0,79291.0,0.012611]
[1744111669442,0.252224,79295.0,79289.0,0.252241]
[1744111669737,0.252224,79295.0,79290.0,0.12625864]
[1744111669943,0.264835,79295.0,79290.0,0.12625864]
[1744111670141,0.0098451,79300.0,79295.0,0.012611]
[1744111670360,0.34,79299.0,79294.0,0.0463]
[1744111670596,0.001,79295.0,79294.0,0.0463]
[1744111670795,0.35261,79299.0,79294.0,0.0463]
[1744111671590,0.02361875,79298.0,79294.0,0.298523]
[1744111671773,0.02361875,79297.0,79294.0,0.0463]
[1744111672646,0.252238,79290.0,79287.0,0.0463]
[1744111672891,0.252238,79290.0,79283.0,0.00943537]
[1744111672892,0.012612,79287.0,79283.0,0.00943537]
[1744111673035,0.264856,79288.0,79283.0,0.00943537]
[1744111673237,0.02361875,79289.0,79286.0,1.158452]
[1744111673523,0.02361875,79289.0,79286.0,1.410702]
[1744111673766,0.02361875,79289.0,79286.0,1.263982]
[1744111673996,0.25224,79290.0,79287.0,0.14772]
[1744111674222,0.252237,79291.0,79287.0,0.399965]
[1744111674417,0.009819,79294.0,79293.0,0.012611]
[1744111674751,0.253216,79297.0,79293.0,0.012611]
[1744111674971,0.252216,79297.0,79293.0,0.012611]
[1744111675270,0.252216,79297.0,79289.0,0.252232]
[1744111675271,0.012611,79295.0,79289.0,0.252232]
[1744111675502,0.012611,79295.0,79290.0,0.12625864]
[1744111675705,0.264833,79295.0,79290.0,0.37849464]
[1744111675901,0.252222,79295.0,79291.0,0.264844]
[1744111676107,0.252213,79298.0,79294.0,0.012611]
[1744111676274,0.264819,79299.0,79294.0,0.264835]
[1744111676468,0.252219,79297.0,79293.0,0.002]
[1744111677011,0.252222,79296.0,79293.0,0.002]
[1744111677221,0.264832,79296.0,79294.0,0.14672]
[1744111678226,0.012611,79295.0,79294.0,0.14672]
[1744111678610,0.01261,79302.0,79296.0,0.01261]
[1744111678818,0.0124546,79303.0,79300.0,0.264816]
[1744111679296,0.0124546,79303.0,79300.0,0.411536]
[1744111679715,0.3524546,79303.0,79300.0,0.14672]
[1744111679937,0.0236154,79302.0,79300.0,0.14672]
[1744111680155,0.2758174,79302.0,79300.0,0.14672]
[1744111680407,0.0236154,79301.0,79300.0,0.14672]
[1744111680601,0.0362254,79301.0,79300.0,0.14672]
[1744111681139,0.0372254,79301.0,79300.0,0.14672]
[1744111681574,0.01361,79301.0,79300.0,0.14672]
[1744111682925,0.01561,79301.0,79300.0,0.14672]
[1744111684718,0.003,79301.0,79300.0,0.14672]
[1744111684929,0.003,79301.0,79300.0,0.15933]
[1744111685628,0.002,79301.0,79300.0,0.15933]
[1744111686169,0.002,79301.0,79300.0,0.28558864]
[1744111686558,0.01271937,79304.0,79301.0,0.252203]
[1744111686762,0.01271937,79304.0,79302.0,0.12625864]
[1744111686997,0.264803,79305.0,79302.0,0.12625864]
[1744111687196,0.264803,79305.0,79272.0,0.504589]
[1744111687197,0.012611,79295.0,79288.0,0.0462]
[1744111687487,0.012611,79294.0,79289.0,0.12625864]
[1744111688361,0.252233,79293.0,79289.0,0.12625864]
[1744111688610,0.252233,79293.0,79289.0,0.13025864]
[1744111689127,0.264834,79295.0,79289.0,0.39111064]
[1744111689544,0.264834,79295.0,79289.0,0.39511064]
[1744111690282,0.0098122,79297.0,79296.0,0.264829]
[1744111690490,0.0098122,79297.0,79296.0,0.39108764]
[1744111690706,0.35253426,79305.0,79300.0,0.252205]
[1744111690896,0.34,79303.0,79300.0,0.252205]
[1744111691294,0.34,79303.0,79296.0,0.44028764]
[1744111691295,0.26481,79302.0,79296.0,0.17545864]
[1744111691517,0.264819,79300.0,79297.0,0.12625864]
[1744111691722,0.264812,79302.0,79297.0,0.12625864]
[1744111691908,0.252203,79301.0,79297.0,0.37847264]
[1744111692899,0.264812,79302.0,79297.0,0.37847264]
[1744111693858,0.252205,79301.0,79297.0,0.12625864]
[1744111693987,0.264812,79302.0,79297.0,0.37847264]
[1744111694406,0.264812,79302.0,79298.0,0.252211]
[1744111694610,0.265812,79302.0,79298.0,0.252211]
[1744111695258,0.001,79302.0,79299.0,0.252208]
[1744111695472,0.02243006,79305.0,79300.0,0.398884]
[1744111695633,0.252195,79304.0,79300.0,0.14668]
[1744111695840,0.001,79302.0,79300.0,0.14668]
[1744111696234,0.001,79302.0,79301.0,0.01261]
[1744111696438,0.001,79302.0,79300.0,0.398883]
[1744111697100,0.01253426,79305.0,79302.0,0.2522]
[1744111697275,0.264804,79304.0,79300.0,0.27293864]
[1744111697508,0.001,79302.0,79300.0,0.27293864]
[1744111697658,0.264804,79304.0,79300.0,0.27293864]
[1744111698469,0.264808,79303.0,79300.0,0.27393864]
[1744111700188,0.01261,79301.0,79300.0,0.27393864]
[1744111700406,0.01261,79301.0,79300.0,0.14768]
[1744111700608,0.01261,79301.0,79300.0,0.14668]
[1744111701108,0.01261,79301.0,79300.0,0.001]
[1744111701321,0.01261,79301.0,79278.0,0.0003362]
[1744111701322,0.012611,79291.0,79290.0,0.14668]
[1744111701526,0.604846,79291.0,79290.0,0.14668]
[1744111702576,0.604846,79291.0,79290.0,0.15168]
[1744111704150,0.604846,79291.0,79290.0,0.14668]
[1744111716639,0.60486,79287.0,79286.0,0.045]
[1744111716843,0.60486,79287.0,79286.0,0.19172]
[1744111717794,0.34,79287.0,79286.0,0.19372]
[1744111718232,0.34,79287.0,79286.0,0.19572]
[1744111718647,0.34,79287.0,79286.0,0.208332]
[1744111719012,0.34,79287.0,79286.0,0.19572]
[1744111720088,0.34,79287.0,79286.0,0.208332]
[1744111720573,0.34,79287.0,79286.0,0.19572]
[1744111721801,0.352612,79287.0,79286.0,0.19572]
[1744111723642,0.34,79287.0,79286.0,0.447971]
[1744111723847,0.34,79287.0,79286.0,0.460583]
[1744111724026,0.34,79287.0,79286.0,0.19572]
[1744111726530,0.60486,79287.0,79286.0,0.19572]
[1744111726752,0.34,79287.0,79286.0,0.19572]
[1744111727118,0.34,79287.0,79286.0,0.460583]
[1744111727361,0.34,79287.0,79286.0,0.19572]
[1744111730737,0.34,79287.0,79286.0,0.33459064]
[1744111731348,0.00992,79294.0,79293.0,0.252229]
[1744111731619,0.00992,79294.0,79291.0,0.252233]
[1744111731751,0.264835,79295.0,79291.0,0.12625864]
[1744111732549,0.01261,79298.0,79292.0,0.25223]
[1744111732702,0.001,79294.0,79291.0,0.12625864]
[1744111733100,0.001,79294.0,79292.0,0.252232]
[1744111733324,0.35261,79296.0,79292.0,0.252232]
[1744111733536,0.252229,79293.0,79291.0,0.12625864]
[1744111733750,0.252229,79294.0,79291.0,0.12625864]
[1744111733956,0.253229,79294.0,79291.0,0.12625864]
[1744111734177,0.264833,79295.0,79291.0,0.12625864]
[1744111734350,0.252222,79295.0,79291.0,0.12625864]
[1744111734549,0.001,79296.0,79291.0,0.13886964]
[1744111734757,0.264835,79295.0,79292.0,0.0479]
[1744111734929,0.252227,79294.0,79292.0,0.0479]
[1744111735133,0.001,79294.0,79292.0,0.0479]
[1744111735326,0.264835,79295.0,79292.0,0.0479]
[1744111736537,0.001,79296.0,79292.0,0.30013]
[1744111736806,0.593221,79296.0,79292.0,0.30013]
[1744111737085,0.605831,79296.0,79292.0,0.0479]
[1744111737384,0.264831,79296.0,79292.0,0.0479]
[1744111737706,0.252226,79294.0,79292.0,0.0479]
[1744111738050,0.01261,79298.0,79292.0,0.0479]
[1744111738051,0.3498562,79299.0,79296.0,0.252219]
[1744111738241,0.3498562,79299.0,79297.0,0.252214]
[1744111738441,0.34,79301.0,79297.0,0.252214]
[1744111738661,0.34,79299.0,79295.0,0.012611]
[1744111738879,0.592211,79299.0,79294.0,0.264834]
[1744111739190,0.252215,79298.0,79294.0,0.012611]
[1744111739400,0.264827,79297.0,79292.0,0.42638964]
[1744111739964,0.252221,79296.0,79292.0,0.42638964]
[1744111740537,0.252221,79296.0,79292.0,0.17415864]
[1744111740657,0.264827,79297.0,79292.0,0.42638864]
[1744111740857,0.25222,79296.0,79292.0,0.42638864]
[1744111741068,0.264827,79297.0,79292.0,0.42638864]
[1744111741986,0.0098773,79300.0,79299.0,0.01261]
[1744111742214,0.0098773,79300.0,79299.0,0.264819]
[1744111742411,0.00041963,79306.0,79304.0,0.264803]
[1744111742609,0.34041963,79306.0,79304.0,0.14664]
[1744111742969,0.00041963,79306.0,79304.0,0.15633481]
[1744111743211,0.2654359,79306.0,79304.0,0.15633481]
[1744111743399,0.2780449,79306.0,79304.0,0.15633481]
[1744111744147,0.012609,79305.0,79304.0,0.14664]
[1744111745479,0.014609,79305.0,79304.0,0.14664]
[1744111745837,0.017609,79305.0,79304.0,0.14664]
[1744111751264,0.005,79305.0,79304.0,0.14664]
[1744111751473,0.005,79305.0,79304.0,0.58740164]
[1744111751670,0.005,79305.0,79304.0,0.78710164]
[1744111751872,0.005,79305.0,79304.0,0.80158935]
[1744111752279,0.00041963,79306.0,79305.0,0.07684985]
[1744111752483,0.00041963,79306.0,79305.0,0.2553298]
[1744111752683,0.00041963,79306.0,79305.0,0.25280849]
[1744111753580,0.00041963,79306.0,79305.0,0.26080849]
[1744111754158,0.00041963,79306.0,79305.0,0.23365864]
[1744111754335,0.00041963,79306.0,79305.0,0.39290764]
[1744111754565,0.00041963,79306.0,79305.0,0.40744849]
[1744111754769,0.00041963,79306.0,79305.0,0.41444849]
[1744111757080,0.00041963,79306.0,79305.0,0.82884849]
[1744111762410,6.3e-07,79306.0,79305.0,0.82884849]
[1744111763594,6.3e-07,79306.0,79305.0,0.82184849]
[1744111763836,6.3e-07,79306.0,79305.0,0.83084849]
[1744111764194,6.3e-07,79306.0,79305.0,0.82284849]
[1744111764399,6.3e-07,79306.0,79305.0,0.83184849]
[1744111766174,0.0001681,79327.0,79321.0,0.52718785]
[1744111766175,1e-07,79322.0,79321.0,0.52718785]
[1744111766503,1e-07,79322.0,79321.0,1.79888649]
[1744111767387,0.0001681,79335.0,79321.0,1.79888649]
[1744111767388,6e-07,79331.0,79330.0,0.0492]
[1744111767591,8e-07,79333.0,79332.0,0.0492]
[1744111767728,8e-07,79333.0,79332.0,0.50472961]
[1744111767931,8e-07,79333.0,79332.0,0.51484909]
[1744111768135,0.251987,79369.0,79334.0,0.252098]
[1744111768397,0.0099362,79365.0,79335.0,0.39662349]
[1744111768600,0.251997,79366.0,79335.0,0.39662349]
[1744111768815,0.00021005,79336.0,79335.0,0.39662349]
[1744111769712,0.00021005,79336.0,79335.0,0.40562349]
[1744111771073,0.00021005,79336.0,79335.0,0.41462349]
[1744111771676,0.00021005,79336.0,79335.0,0.82902349]
[1744111773915,0.00021005,79336.0,79335.0,0.68250349]
[1744111774048,0.00021005,79336.0,79335.0,0.82902349]
[1744111775587,0.00021005,79336.0,79335.0,0.97902349]
[1744111777228,0.00021005,79336.0,79335.0,0.97898349]
[1744111777621,0.00021005,79336.0,79335.0,0.68250349]
[1744111777826,0.00021005,79336.0,79335.0,0.97898349]
[1744111779016,0.00021005,79336.0,79335.0,0.83250349]
[1744111779213,0.00021005,79336.0,79335.0,0.97898349]
[1744111780114,0.00021005,79336.0,79335.0,0.76876264]
[1744111780316,0.00021005,79336.0,79335.0,0.86774264]
[1744111780690,0.00021005,79336.0,79335.0,0.88228349]
[1744111784862,0.01186815,79349.0,79336.0,0.27923685]
[1744111784863,1.5e-07,79337.0,79336.0,0.27923685]
[1744111785082,1.5e-07,79337.0,79336.0,0.45129549]
[1744111787209,1.5e-07,79337.0,79336.0,0.46029549]
[1744111787402,1.5e-07,79337.0,79336.0,0.46929549]
[1744111788275,1.5e-07,79337.0,79336.0,0.51599549]
[1744111789233,1.5e-07,79337.0,79336.0,0.93039549]
[1744111790176,1.5e-07,79337.0,79336.0,1.27039549]
[1744111790752,1.5e-07,79337.0,79336.0,1.27539549]
[1744111790957,1.5e-07,79337.0,79336.0,1.26639549]
[1744111791348,1.5e-07,79337.0,79336.0,1.27539549]
[1744111791726,1.5e-07,79337.0,79336.0,1.25739549]
[1744111791928,5e-07,79349.0,79348.0,0.42919685]
[1744111792187,5e-07,79349.0,79348.0,1.06265549]
[1744111793213,5e-07,79349.0,79348.0,1.07165549]
[1744111793538,5e-07,79349.0,79348.0,1.06265549]
[1744111794355,5e-07,79349.0,79348.0,1.07165549]
[1744111794820,5e-07,79349.0,79348.0,1.08065549]
[1744111795640,5e-07,79349.0,79348.0,1.07165549]
[1744111796141,5e-07,79349.0,79348.0,1.08065549]
[1744111796519,5e-07,79349.0,79348.0,1.07165549]
[1744111796924,5e-07,79349.0,79348.0,1.08065549]
[1744111800274,5e-07,79349.0,79348.0,2.07889549]
[1744111800423,5e-07,79349.0,79348.0,1.97155464]
[1744111800625,5e-07,79349.0,79348.0,1.85329864]
[1744111800832,5e-07,79349.0,79348.0,1.88044149]
[1744111801885,5e-07,79349.0,79348.0,1.73404149]
[1744111802091,5e-07,79349.0,79348.0,1.88044149]
[1744111802288,5e-07,79349.0,79348.0,1.73404149]
[1744111802486,5e-07,79349.0,79348.0,1.88044149]
[1744111803072,5e-07,79349.0,79348.0,1.73404149]
[1744111803276,5e-07,79349.0,79348.0,1.88044149]
[1744111805194,5e-07,79349.0,79348.0,1.46604149]
[1744111806189,5e-07,79349.0,79348.0,1.45150064]
[1744111806826,5e-07,79349.0,79348.0,1.46604149]
[1744111809567,5e-07,79349.0,79348.0,1.31604149]
[1744111809725,5e-07,79349.0,79348.0,1.46604149]
[1744111813878,5e-07,79349.0,79348.0,1.53763932]
[1744111815322,5e-07,79349.0,79348.0,1.58723932]
[1744111815839,5e-07,79349.0,79348.0,1.57823932]
[1744111816046,5e-07,79349.0,79348.0,1.56923932]
[1744111816200,5e-07,79349.0,79348.0,1.58723932]
[1744111817439,5e-07,79349.0,79348.0,1.93223932]
[1744111817657,5e-07,79349.0,79348.0,1.97120567]
[1744111818616,5e-07,79349.0,79348.0,1.96220567]
[1744111818786,5e-07,79349.0,79348.0,1.95320567]
[1744111819011,5e-07,79349.0,79348.0,1.96220567]
[1744111819231,5e-07,79349.0,79348.0,1.97120567]
[1744111820497,5e-07,79349.0,79348.0,1.96620567]
[1744111820900,5e-07,79349.0,79348.0,1.81489847]
[1744111821280,5e-07,79349.0,79348.0,1.82943932]
[1744111822056,5e-07,79349.0,79348.0,1.68303932]
[1744111822314,5e-07,79349.0,79348.0,1.82935932]
[1744111823884,5e-07,79349.0,79348.0,1.91654965]
[1744111825085,5e-07,79349.0,79348.0,1.82935932]
[1744111825924,5e-07,79349.0,79348.0,1.80596149]
[1744111827057,5e-07,79349.0,79348.0,1.82935747]
[1744111828212,5e-07,79349.0,79348.0,1.91544746]
[1744111828417,5e-07,79349.0,79348.0,1.96664746]
[1744111831423,5e-07,79349.0,79348.0,1.95764746]
[1744111832218,5e-07,79349.0,79348.0,1.96164746]
[1744111832612,5e-07,79349.0,79348.0,1.94364746]